bitfinex-derivatives/quotes_ETHF0:USTF0_20250624
["timestamp","ask_amount","ask_price","bid_price","bid_amount"]
[1750766314199,0.82945,2409.7,2409.6,4.03726]
[1750766314403,0.82945,2409.7,2409.6,10.80526]
[1750766314597,0.82945,2409.7,2409.6,10.80528]
[1750766315107,0.82945,2409.7,2409.6,7.59748]
[1750766317405,0.82944,2409.8,2409.7,0.82941]
[1750766317911,0.82945,2409.7,2409.6,7.59746]
[1750766323809,0.82945,2409.7,2409.6,6.768]
[1750766324514,2.36545,2409.7,2409.6,6.768]
[1750766324707,2.36545,2409.7,2409.6,7.59749]
[1750766325307,2.36545,2409.7,2409.6,6.768]
[1750766325708,2.36545,2409.7,2409.6,7.59749]
[1750766329118,0.82949,2409.6,2409.5,7.59249]
[1750766330720,2.36548,2409.7,2409.6,0.82949]
[1750766332117,12.64351,2409.7,2409.3,3.2078]
[1750766332310,6.08093336,2410.0,2409.1,47.815]
[1750766332311,0.82962,2409.2,2409.1,6.763]
[1750766333113,2.25302,2409.2,2409.1,6.763]
[1750766333813,2.25302,2409.2,2409.1,7.59266]
[1750766334220,0.82962,2409.3,2409.2,0.82959]
[1750766334818,0.82962,2409.3,2409.2,2.26619]
[1750766335817,0.82962,2409.3,2409.2,1.4366]
[1750766336016,0.82962,2409.2,2409.1,6.763]
[1750766338224,0.82962,2409.2,2409.1,7.59266]
[1750766340325,0.82962,2409.2,2409.1,6.763]
[1750766341415,0.82962,2409.2,2409.1,7.59266]
[1750766341819,0.82962,2409.2,2409.1,6.763]
[1750766342923,0.82962,2409.2,2409.1,7.59266]
[1750766343223,0.82962,2409.3,2409.2,0.82959]
[1750766343424,0.82962,2409.3,2409.2,3.28496034]
[1750766343630,0.82962,2409.2,2409.1,7.59263]
[1750766343927,0.82962,2409.2,2409.1,6.763]
[1750766344321,0.82962,2409.2,2409.1,7.59266]
[1750766347623,0.82962,2409.2,2409.1,9.09916]
[1750766347824,0.82961,2409.3,2409.2,0.82957]
[1750766350338,9.0338,2409.8,2409.2,7.45537034]
[1750766350634,9.0338,2409.8,2409.7,0.82945]
[1750766350839,4.03721,2409.8,2409.7,6.764]
[1750766351128,5.06431506,2409.8,2409.7,6.764]
[1750766351736,0.82948,2409.6,2409.5,7.5935]
[1750766355737,6.65548,2409.7,2409.6,0.82948]
[1750766357036,0.82949,2409.6,2409.5,6.764]
[1750766357430,2.26049,2409.6,2409.5,6.764]
[1750766357637,2.26049,2409.6,2409.5,7.59352]
[1750766360340,2.26049,2409.6,2409.5,6.764]
[1750766360540,2.26049,2409.6,2409.5,7.59352]
[1750766362644,6.65548,2409.7,2409.6,0.82949]
[1750766363242,0.82949,2409.6,2409.5,7.5935]
[1750766364537,6.65548,2409.7,2409.6,0.82949]
[1750766365747,6.65545,2409.7,2409.6,3.28486034]
[1750766366045,6.65545,2409.7,2409.6,4.76846034]
[1750766366945,0.82945,2409.7,2409.6,4.76846034]
[1750766367246,0.82944,2409.8,2409.7,0.82939]
[1750766367446,0.82939,2409.9,2409.8,0.82938]
[1750766367638,6.65538,2410.0,2409.9,0.82938]
[1750766367843,6.65538,2410.0,2409.9,8.99908]
[1750766368045,0.82938,2410.0,2409.9,8.99908]
[1750766368442,4.03714,2410.1,2410.0,0.82935]
[1750766368751,0.82931,2410.2,2410.1,0.82928]
[1750766369047,1.8566203,2410.2,2410.1,0.82928]
[1750766369639,0.82931,2410.2,2410.1,0.82928]
[1750766372950,0.82931,2410.1,2410.0,4.03713]
[1750766379353,0.82931,2410.1,2410.0,3.2078]
[1750766380055,0.82935,2410.0,2409.9,6.756]
[1750766380359,2.33695,2410.0,2409.9,6.756]
[1750766380957,2.33695,2410.0,2409.9,7.58538]
[1750766383357,0.82935,2410.0,2409.9,7.58538]
[1750766386258,2.29365,2410.0,2409.9,7.58538]
[1750766392647,3.32255619,2410.0,2409.9,7.58538]
[1750766395560,0.82935,2410.0,2409.9,7.58538]
[1750766396859,0.82934,2410.1,2410.0,0.82935]
[1750766397160,1.85911952,2410.1,2410.0,0.82935]
[1750766398761,1.85911952,2410.1,2410.0,2.34595]
[1750766400257,0.82935,2410.0,2409.9,6.756]
[1750766400462,6.47052952,2410.0,2409.9,6.756]
[1750766400664,3.26272952,2410.0,2409.9,7.58538]
[1750766402574,3.26272952,2410.0,2409.9,6.756]
[1750766403165,0.82945,2409.7,2409.6,6.744]
[1750766403672,5.06824103,2409.7,2409.6,6.744]
[1750766403864,5.06824377,2409.7,2409.6,6.744]
[1750766404478,4.03725,2409.7,2409.6,6.744]
[1750766404971,0.82945,2409.8,2409.7,0.82942]
[1750766405171,0.82945,2409.8,2409.7,2.21812]
[1750766405576,0.82945,2409.8,2409.7,3.73292]
[1750766405968,5.826,2410.2,2409.9,2.07345]
[1750766406271,5.826,2410.2,2410.1,3.28468034]
[1750766406669,5.826,2410.2,2410.1,4.79948034]
[1750766406869,5.826,2410.2,2410.1,6.24468034]
[1750766407065,0.82919,2410.5,2410.4,0.82918]
[1750766407270,1.03118911,2410.5,2410.4,6.744]
[1750766407668,1.86036911,2410.5,2410.4,6.744]
[1750766407869,3.30366911,2410.5,2410.4,6.744]
[1750766408267,1.86036911,2410.5,2410.4,6.744]
[1750766408674,1.86036911,2410.5,2410.4,7.57321]
[1750766408870,0.82918,2410.5,2410.4,7.57321]
[1750766409068,0.82918,2410.5,2410.4,6.744]
[1750766409368,0.82918,2410.5,2410.4,7.57321]
[1750766410272,0.82918,2410.5,2410.4,6.744]
[1750766410479,0.82918,2410.5,2410.4,7.57321]
[1750766410668,0.82918,2410.5,2410.4,10.02858034]
[1750766411079,0.82918,2410.5,2410.4,9.19937034]
[1750766411279,0.82918,2410.5,2410.4,10.02858034]
[1750766411471,0.82918,2410.5,2410.4,9.19937034]
[1750766411971,0.82918,2410.5,2410.4,6.744]
[1750766412378,0.82918,2410.5,2410.4,7.57321]
[1750766412579,0.82918,2410.5,2410.4,6.744]
[1750766414683,0.82928,2410.2,2410.1,8.2578]
[1750766415979,0.82928,2410.2,2410.1,11.54248034]
[1750766416176,0.82928,2410.3,2410.2,0.82925]
[1750766416572,0.82922,2410.5,2410.4,0.82919]
[1750766416870,0.82922,2410.5,2410.4,3.28456034]
[1750766417071,0.82917,2410.6,2410.5,0.82915]
[1750766417286,0.82917,2410.6,2410.5,9.00265]
[1750766417474,0.82914,2410.6,2410.5,9.00265]
[1750766417966,0.82914,2410.6,2410.5,8.1735]
[1750766418674,4.03694,2410.6,2410.5,6.73]
[1750766418992,0.82942,2409.9,2409.8,0.8294]
[1750766420675,0.82942,2409.8,2409.7,4.72830034]
[1750766421276,0.82941,2409.9,2409.8,0.82938]
[1750766421984,0.82938,2410.0,2409.9,0.82935]
[1750766422186,0.82938,2410.0,2409.9,7.55935]
[1750766422382,0.82933,2410.1,2410.0,0.82931]
[1750766423897,0.82935,2410.0,2409.9,10.01474034]
[1750766424291,0.82934,2410.1,2410.0,0.82932]
[1750766424895,0.82935,2410.0,2409.9,10.01474034]
[1750766425290,7.9626315,2410.6,2409.9,12.39317034]
[1750766425496,0.82925,2410.4,2410.3,3.28460034]
[1750766425699,0.82925,2410.4,2410.3,10.01460034]
[1750766425992,0.82925,2410.4,2410.3,6.73]
[1750766426592,0.82925,2410.4,2410.3,7.55925]
[1750766428090,0.82921,2410.5,2410.4,0.82918]
[1750766428598,0.82925,2410.3,2410.2,3.2078]
[1750766428792,0.82928,2410.2,2410.1,6.73]
[1750766430195,0.82928,2410.2,2410.1,7.55931]
[1750766430602,0.82928,2410.2,2410.1,6.73]
[1750766430992,0.82927,2410.3,2410.2,0.82925]
[1750766431997,0.82927,2410.3,2410.2,2.31125]
[1750766434592,2.27347,2410.3,2410.2,2.31125]
[1750766435603,0.82928,2410.2,2410.1,0.82929]
[1750766435903,0.82938,2409.9,2409.8,6.73]
[1750766436099,6.65538,2409.9,2409.8,6.73]
[1750766436498,8.11778,2409.9,2409.8,6.73]
[1750766436903,5.826,2409.9,2409.8,10.01479034]
[1750766437105,6.65538,2409.9,2409.8,7.55942]
[1750766439008,5.826,2409.9,2409.8,7.55942]
[1750766440001,6.65538,2409.9,2409.8,7.55942]
[1750766440403,5.826,2409.9,2409.8,7.55942]
[1750766440799,0.82925,2410.3,2410.2,0.82928]
[1750766441104,0.82924,2410.4,2410.3,0.82921]
[1750766441308,1.84694374,2410.4,2410.3,0.82921]
[1750766441508,0.82924,2410.4,2410.3,0.82921]
[1750766442305,0.82919,2410.5,2410.4,0.82921]
[1750766442507,3.2078,2410.7,2410.6,0.82914]
[1750766442713,3.2078,2410.7,2410.6,10.01451034]
[1750766443212,1.3948,2410.9,2410.6,9.18537034]
[1750766443514,3.69187,2410.9,2410.8,0.82907]
[1750766443702,0.8291,2410.8,2410.7,0.82907]
[1750766443908,0.82911,2410.7,2410.6,7.55912]
[1750766444513,0.82911,2410.7,2410.6,6.73]
[1750766444709,4.03691,2410.7,2410.6,6.73]
[1750766445013,0.82921,2410.4,2410.3,0.82922]
[1750766445213,0.82921,2410.4,2410.3,7.55922]
[1750766446515,2.27711,2410.4,2410.3,7.55922]
[1750766446711,0.82949,2409.6,2409.5,0.82949]
[1750766447011,3.2078,2409.6,2409.5,0.82952]
[1750766447313,4.03732,2409.6,2409.4,1.454]
[1750766447512,4.03732,2409.6,2409.4,2.28353]
[1750766448409,0.82952,2409.5,2409.4,2.28353]
[1750766448917,4.03731,2409.6,2409.4,2.28353]
[1750766449112,3.2078,2409.6,2409.5,3.28489034]
[1750766449311,4.03729,2409.6,2409.5,3.28489034]
[1750766450012,4.03729,2409.6,2409.5,2.45537034]
[1750766450204,3.2078,2409.6,2409.3,6.736]
[1750766450411,0.82956,2409.4,2409.3,6.736]
[1750766450811,2.27336,2409.4,2409.3,6.736]
[1750766451319,0.82956,2409.4,2409.3,6.736]
[1750766451821,1.4367,2409.5,2409.3,6.736]
[1750766451822,2.26624,2409.5,2409.3,6.736]
[1750766452023,0.82954,2409.5,2409.4,2.45537034]
[1750766452218,0.82956,2409.4,2409.3,9.02027]
[1750766452622,0.82954,2409.5,2409.4,0.82953]
[1750766453013,4.03731,2409.6,2409.5,0.82952]
[1750766453521,3.2078,2409.6,2409.5,0.82952]
[1750766454525,4.03729,2409.6,2409.5,0.82952]
[1750766454725,3.2078,2409.6,2409.5,0.82952]
[1750766455626,0.82944,2409.8,2409.7,0.82945]
[1750766455825,3.2078,2410.4,2409.9,2.07347]
[1750766456116,0.82927,2410.3,2410.2,0.82925]
[1750766456524,4.03703,2410.4,2410.3,0.82925]
[1750766457025,5.47461,2410.4,2410.3,6.737]
[1750766459818,5.47461,2410.4,2410.3,7.56625]
[1750766460528,4.03701,2410.4,2410.3,7.56625]
[1750766461226,0.82921,2410.4,2410.3,7.56625]
[1750766461528,0.82921,2410.4,2410.3,6.736]
[1750766462027,0.82921,2410.4,2410.3,7.56525]
[1750766462430,0.8292,2410.5,2410.4,0.82921]
[1750766463820,0.82917,2410.6,2410.5,0.82918]
[1750766464426,0.82904,2410.9,2410.8,0.82907]
[1750766464632,0.82904,2410.9,2410.8,7.56507]
[1750766465616,4.03683,2411.0,2410.9,0.82904]
[1750766466528,3.2078,2411.0,2410.9,0.82904]
[1750766466731,4.0368,2411.0,2410.9,0.82904]
[1750766467616,3.2078,2411.0,2410.9,0.82904]
[1750766468224,4.0368,2411.0,2410.9,0.82904]
[1750766468820,0.82904,2410.9,2410.8,6.736]
[1750766469021,4.03683,2411.0,2410.9,0.82904]
[1750766469427,0.82903,2411.0,2410.9,0.82904]
[1750766469824,0.82911,2410.7,2410.6,1.4756]
[1750766470030,4.03691,2410.7,2410.6,6.735]
[1750766470223,0.82928,2410.2,2410.1,1.4454]
[1750766470422,0.82928,2410.2,2410.1,6.735]
[1750766470620,0.8929815,2410.4,2410.1,6.735]
[1750766470828,0.8929815,2410.4,2410.3,0.82925]
[1750766471225,0.8929615,2410.4,2410.3,0.82925]
[1750766471622,0.0637515,2410.4,2410.3,0.82925]
[1750766472827,0.8929615,2410.4,2410.3,0.82925]
[1750766473127,0.82925,2410.3,2410.2,1.4602]
[1750766473331,2.15925,2410.3,2410.2,0.82928]
[1750766473530,2.15925,2410.3,2409.9,2.07345]
[1750766473531,1.33,2410.3,2409.9,3.53365]
[1750766473730,1.33,2410.3,2410.1,0.82929]
[1750766473731,2.30511,2410.2,2410.1,0.82929]
[1750766474035,0.82931,2410.1,2410.0,7.56433]
[1750766474233,0.82935,2410.0,2409.9,2.28956]
[1750766474434,0.82935,2410.0,2409.9,7.56436]
[1750766474829,0.82935,2410.0,2409.9,6.735]
[1750766475432,0.82935,2410.0,2409.9,7.56438]
[1750766475938,1.4758,2410.2,2409.9,6.735]
[1750766476134,2.30511,2410.2,2410.1,0.82931]
[1750766476338,3.64111,2410.2,2410.1,0.82931]
[1750766476526,0.82927,2410.3,2410.1,0.82931]
[1750766476730,0.82927,2410.3,2410.2,0.82928]
[1750766477934,0.8929815,2410.4,2410.3,0.82925]
[1750766478133,0.8929815,2410.4,2410.3,7.56425]
[1750766478328,0.8929815,2410.4,2410.3,6.735]
[1750766478646,2.2427815,2410.4,2410.3,6.735]
[1750766478840,2.2427815,2410.4,2410.3,7.56425]
[1750766479532,2.2427815,2410.4,2410.3,6.735]
[1750766479835,2.17903,2410.4,2410.3,6.735]
[1750766480226,1.3498,2410.4,2410.3,6.735]
[1750766480429,6.65521,2410.5,2410.4,0.82921]
[1750766480628,6.65521,2410.5,2410.3,7.56421]
[1750766480629,0.82921,2410.4,2410.3,7.56421]
[1750766480935,2.17901,2410.4,2410.3,7.56421]
[1750766481531,5.826,2410.5,2410.4,0.82921]
[1750766482037,5.826,2410.5,2410.4,2.23851]
[1750766482937,6.65518,2410.5,2410.4,2.23851]
[1750766484932,3.2078,2410.6,2410.5,0.82918]
[1750766485939,3.2078,2410.6,2410.4,1.4093]
[1750766486135,0.82918,2410.5,2410.4,1.4093]
[1750766486341,3.62928,2410.5,2410.4,1.4093]
[1750766486743,3.62928,2410.5,2410.4,2.2385]
[1750766487646,3.62928,2410.5,2410.4,1.4093]
[1750766488140,3.62928,2410.5,2410.4,2.23851]
[1750766488643,0.82924,2410.4,2410.3,0.82921]
[1750766488941,2.14684,2410.4,2410.3,7.56421]
[1750766489932,2.14684,2410.4,2410.3,6.735]
[1750766491036,7.97284,2410.4,2410.3,6.735]
[1750766491339,7.97284,2410.4,2410.3,7.56425]
[1750766491943,5.826,2410.4,2410.3,7.56425]
[1750766492446,6.65521,2410.4,2410.3,7.56425]
[1750766492840,8.08411,2410.4,2410.3,7.56425]
[1750766493143,6.65521,2410.4,2410.3,7.56425]
[1750766493337,5.826,2410.4,2410.3,7.56425]
[1750766494246,4.03695,2410.6,2410.5,0.82918]
[1750766495233,0.82918,2410.5,2410.4,2.26228]
[1750766495845,0.82921,2410.4,2410.3,7.56422]
[1750766496045,2.2596615,2410.4,2410.3,7.56422]
[1750766496737,2.2596615,2410.4,2410.3,7.00232]
[1750766498049,3.5035415,2410.4,2410.0,0.82931]
[1750766498342,0.82928,2410.2,2410.1,6.735]
[1750766498544,0.82928,2410.2,2410.1,7.5643]
[1750766499443,3.57627,2410.3,2410.2,0.82928]
[1750766500045,9.40227,2410.3,2410.2,0.82928]
[1750766501243,0.82931,2410.1,2410.0,3.30980688]
[1750766501448,0.82931,2410.1,2410.0,6.735]
[1750766501649,0.82931,2410.1,2410.0,7.56435]
[1750766506750,0.8293,2410.2,2410.1,0.82931]
[1750766507050,0.8293,2410.2,2410.1,3.28242649]
[1750766507853,6.65528,2410.3,2410.2,0.82928]
[1750766508154,5.826,2410.3,2410.2,0.82928]
[1750766508340,0.0637515,2410.4,2410.3,0.82925]
[1750766508546,0.0637515,2410.4,2410.3,10.00836649]
[1750766509154,0.0637515,2410.4,2410.3,12.69656649]
[1750766510151,0.82917,2410.6,2410.5,0.82918]
[1750766510650,0.82921,2410.5,2410.4,0.82919]
[1750766515459,0.82921,2410.4,2410.3,10.24342]
[1750766516759,0.8292,2410.5,2410.4,0.82918]
[1750766518358,2.16116,2410.6,2410.5,0.82918]
[1750766518860,1.332,2410.6,2410.5,0.82918]
[1750766519054,11.26593,2410.7,2410.6,0.82914]
[1750766519260,12.28232099,2410.7,2410.6,7.55514]
[1750766519451,1.01639099,2410.7,2410.6,7.55514]
[1750766519954,1.84550099,2410.7,2410.6,7.55514]
[1750766520150,5.05330099,2410.7,2410.6,6.726]
[1750766520555,6.36780099,2410.7,2410.6,7.55514]
[1750766521059,6.36780099,2410.7,2410.6,6.726]
[1750766521260,6.36780099,2410.7,2410.6,7.55514]
[1750766523162,5.53869099,2410.7,2410.6,7.55514]
[1750766523362,5.826,2410.9,2410.8,0.82907]
[1750766523561,1.01658799,2410.9,2410.8,0.82907]
[1750766523862,0.82891,2411.3,2410.9,2.07257]
[1750766524065,2.25949,2411.4,2411.3,0.8289]
[1750766524257,3.27637469,2411.4,2411.3,7.5549]
[1750766525058,6.48417469,2411.4,2411.3,7.5549]
[1750766526761,5.46729,2411.4,2411.3,7.5549]
[1750766527768,5.46729,2411.4,2411.3,6.726]
[1750766528369,5.46729,2411.4,2411.2,6.725]
[1750766528370,0.8289,2411.3,2411.2,6.725]
[1750766528568,0.829,2411.0,2410.9,0.82902]
[1750766528869,0.829,2411.0,2410.9,7.55402]
[1750766529370,3.575,2411.0,2410.9,7.55402]
[1750766529559,2.746,2411.0,2410.9,7.55402]
[1750766529866,3.575,2411.0,2410.9,7.55402]
[1750766530758,2.746,2411.0,2410.9,7.55402]
[1750766530959,0.82894,2411.2,2411.1,0.82893]
[1750766531462,2.18973,2411.3,2411.2,0.82894]
[1750766531861,3.56463,2411.3,2411.2,0.82894]
[1750766532463,3.56463,2411.3,2411.2,7.55294]
[1750766532861,4.03669,2411.4,2411.3,0.8289]
[1750766533569,4.03669,2411.4,2411.3,2.1256]
[1750766535866,3.2078,2411.4,2411.3,2.1256]
[1750766536174,4.03667,2411.4,2411.3,2.1256]
[1750766536868,0.8289,2411.3,2411.2,7.55291]
[1750766537170,2.15,2411.3,2411.2,7.55291]
[1750766538773,0.82897,2411.2,2411.1,0.82895]
[1750766538970,2.15007,2411.2,2411.1,7.54395]
[1750766541465,0.82897,2411.2,2411.1,7.54395]
[1750766541862,0.82897,2411.2,2411.1,6.715]
[1750766542073,2.25247,2411.2,2411.1,7.54397]
[1750766542775,0.82897,2411.2,2411.1,7.54397]
[1750766542974,2.18937,2411.2,2411.1,7.54397]
[1750766543766,2.18937,2411.2,2411.1,0.82897]
[1750766544075,2.18937,2411.2,2411.1,7.54397]
[1750766544872,2.18937,2411.2,2411.1,6.715]
[1750766545068,0.829,2411.0,2410.9,0.82901]
[1750766545272,0.829,2411.0,2410.9,7.54401]
[1750766545273,4.0368,2411.0,2410.9,7.54401]
[1750766545778,5.3571,2411.0,2410.9,7.54401]
[1750766546074,4.5281,2411.0,2410.9,7.54401]
[1750766546678,5.3571,2411.0,2410.9,7.54401]
[1750766548676,3.2078,2411.0,2410.9,7.54401]
[1750766549076,4.0368,2411.0,2410.9,7.54401]
[1750766549476,5.4261,2411.0,2410.9,7.54401]
[1750766549677,3.2078,2411.0,2410.9,7.54401]
[1750766550282,2.1813,2411.1,2411.0,0.829]
[1750766551381,1.3523,2411.1,2411.0,0.829]
[1750766553181,9.0338,2411.3,2411.2,0.82894]
[1750766553379,10.05415026,2411.3,2411.2,7.54394]
[1750766553580,10.88305026,2411.3,2411.2,7.54394]
[1750766553982,10.05415026,2411.3,2411.2,7.54394]
[1750766555385,10.88305026,2411.3,2411.2,7.54394]
[1750766555677,10.05415026,2411.3,2411.2,7.54394]
[1750766555885,10.05415026,2411.3,2411.2,9.99562439]
[1750766558385,10.88305026,2411.3,2411.2,9.99562439]
[1750766558681,10.88305026,2411.3,2411.0,0.829]
[1750766558682,12.12644026,2411.3,2410.8,8.33718439]
[1750766558887,4.03684,2411.0,2410.9,7.54401]
[1750766559782,5.58642769,2411.0,2410.7,47.78]
[1750766559977,0.82907,2410.8,2410.7,7.54409]
[1750766560286,8.01427,2410.9,2410.8,0.82907]
[1750766560477,9.03330022,2410.9,2410.8,0.82907]
[1750766562390,8.01427,2410.9,2410.8,0.82907]
[1750766564787,9.03283214,2410.9,2410.8,0.82907]
[1750766565881,9.03274784,2410.9,2410.8,0.82907]
[1750766566491,7.1852,2410.9,2410.8,0.82907]
[1750766566877,5.826,2410.9,2410.8,0.82907]
[1750766567085,5.826,2410.9,2410.8,4.63605439]
[1750766567290,5.826,2410.9,2410.8,5.97305439]
[1750766567594,5.826,2410.9,2410.8,7.39905439]
[1750766567796,5.826,2410.9,2410.8,5.97305439]
[1750766568192,5.826,2410.9,2410.8,3.52137]
[1750766568690,5.826,2410.9,2410.7,6.703]
[1750766568889,4.5704237,2410.8,2410.7,6.703]
[1750766571284,4.5704237,2410.8,2410.7,7.53211]
[1750766571486,3.2309237,2410.8,2410.7,7.53211]
[1750766572791,3.2309237,2410.8,2410.7,8.92971]
[1750766573093,1.8479237,2410.8,2410.7,8.92971]
[1750766573291,4.6681237,2410.8,2410.7,8.92971]
[1750766574286,4.6681237,2410.8,2410.7,8.1006]
[1750766575088,4.6681237,2410.8,2410.7,8.92971]
[1750766575394,1.8479237,2410.8,2410.7,8.1006]
[1750766575587,1.8479237,2410.8,2410.7,6.703]
[1750766575783,0.82918,2410.5,2410.4,1.2993]
[1750766575984,0.82921,2410.4,2410.3,1.3564]
[1750766576189,0.82921,2410.4,2410.2,2.12855]
[1750766576190,0.82925,2410.3,2410.2,2.12855]
[1750766576495,0.82925,2410.3,2410.2,8.83155]
[1750766580290,0.82925,2410.3,2410.2,8.0023]
[1750766580488,0.82925,2410.3,2410.2,8.83158]
[1750766580997,8.00484,2410.4,2410.3,0.82925]
[1750766581192,6.65524,2410.4,2410.3,0.82925]
[1750766581392,5.826,2410.4,2410.3,3.28093439]
[1750766582194,6.65521,2410.4,2410.3,3.28093439]
[1750766582594,5.826,2410.4,2410.3,3.28093439]
[1750766584599,3.2078,2410.9,2410.8,0.82907]
[1750766584894,3.2078,2410.9,2410.8,9.98475439]
[1750766585797,3.2078,2410.9,2410.8,11.33765439]
[1750766586493,4.5724,2411.3,2411.2,0.82894]
[1750766586796,4.22615933,2411.3,2411.2,7.53294]
[1750766587092,5.05505933,2411.3,2411.2,7.53294]
[1750766587297,5.05505933,2411.3,2411.2,10.22624]
[1750766587598,4.0367,2411.3,2411.2,10.22624]
[1750766588591,4.0367,2411.3,2411.2,9.3973]
[1750766588896,5.05516683,2411.3,2411.2,10.22624]
[1750766589093,4.0367,2411.3,2411.2,10.22624]
[1750766589593,3.2078,2411.3,2411.2,10.22624]
[1750766590100,4.0367,2411.3,2411.2,10.22624]
[1750766590501,3.2078,2411.3,2411.2,10.22624]
[1750766590701,3.2078,2411.3,2411.2,11.54664]
[1750766592694,3.2078,2411.3,2411.2,10.22624]
[1750766593104,3.2078,2411.3,2411.2,11.55264]
[1750766593396,1.2988,2411.7,2411.4,2.07213]
[1750766593602,0.82877,2411.7,2411.6,2.45168439]
[1750766593905,0.82877,2411.7,2411.6,9.98348439]
[1750766594103,2.22125,2411.8,2411.7,0.82876]
[1750766594602,0.82876,2411.7,2411.6,11.35805439]
[1750766596100,0.82876,2411.8,2411.7,0.82876]
[1750766596305,0.82876,2411.8,2411.7,1.412]
[1750766597108,0.82876,2411.8,2411.7,2.24076]
[1750766599718,0.8925115,2411.8,2411.7,2.24076]
[1750766600903,0.0637515,2411.8,2411.7,2.24076]
[1750766605611,0.8924815,2411.8,2411.7,2.24076]
[1750766606112,0.0637515,2411.8,2411.7,7.24076]
[1750766606305,5.826,2412.4,2412.3,0.82856]
[1750766606611,3.2078,2412.5,2412.4,0.82852]
[1750766607915,1.3044,2412.7,2412.3,11.21205439]
[1750766608113,1.3044,2412.7,2412.6,0.82846]
[1750766608314,3.2078,2412.8,2412.7,0.82842]
[1750766608514,3.2078,2412.8,2412.7,3.28010439]
[1750766609214,4.6236,2413.1,2413.0,0.82832]
[1750766609408,4.6236,2413.1,2413.0,9.96900439]
[1750766610110,4.6236,2413.1,2413.0,0.82832]
[1750766610613,4.6236,2413.1,2413.0,9.96800439]
[1750766610812,3.2078,2413.1,2413.0,9.96800439]
[1750766615011,3.2715515,2413.1,2413.0,9.96800439]
[1750766615915,3.2715515,2413.1,2413.0,33.06132]
[1750766616717,5.4893315,2413.1,2413.0,33.05932]
[1750766616911,5.4893315,2413.1,2413.0,0.82832]
[1750766617112,5.4893315,2413.1,2413.0,33.05832]
[1750766618215,0.82835,2413.0,2412.9,0.82832]
[1750766618410,4.80175,2413.0,2412.9,6.687]
[1750766618614,0.82841,2412.8,2412.7,7.51442]
[1750766618820,4.03621,2412.8,2412.7,6.686]
[1750766619119,5.27879,2412.8,2412.3,6.686]
[1750766619319,4.0363,2412.5,2412.4,0.82852]
[1750766620213,5.488,2412.5,2412.4,0.82852]
[1750766620414,0.82852,2412.4,2412.3,7.51453]
[1750766620614,2.28022,2412.4,2412.3,7.51453]
[1750766620915,1.4517,2412.4,2412.3,7.51453]
[1750766621113,2.28022,2412.4,2412.3,7.51453]
[1750766621315,1.4517,2412.4,2412.3,7.51453]
[1750766625221,3.2078,2412.5,2412.4,0.82852]
[1750766625419,4.5221,2412.5,2412.4,0.82852]
[1750766629524,5.35059,2412.5,2412.4,0.82852]
[1750766630117,4.5221,2412.5,2412.4,0.82852]
[1750766630312,5.35059,2412.5,2412.4,0.82852]
[1750766630715,17.79978439,2412.5,2411.9,6.675]
[1750766630921,0.82868,2412.0,2411.9,6.675]
[1750766631419,3.40898,2412.0,2411.9,6.675]
[1750766631620,3.40898,2412.0,2411.9,7.5037]
[1750766632021,2.5803,2412.0,2411.9,7.5037]
[1750766632622,3.40896,2412.0,2411.9,7.5037]
[1750766633423,2.5803,2412.0,2411.9,7.5037]
[1750766634228,3.40896,2412.0,2411.9,7.5037]
[1750766634427,2.5803,2412.0,2411.9,7.5037]
[1750766634824,4.03645,2412.1,2412.0,0.82866]
[1750766635122,0.82856,2412.3,2412.2,0.82856]
[1750766635326,2.5856,2412.4,2412.2,0.82856]
[1750766635327,4.56295,2412.4,2412.3,0.82856]
[1750766635525,3.41005,2412.4,2412.3,0.82856]
[1750766639828,0.82856,2412.3,2412.2,8.68647]
[1750766640022,0.82856,2412.3,2412.2,2.01047]
[1750766640222,0.82859,2412.2,2412.1,6.676]
[1750766640430,4.03639,2412.2,2412.1,6.676]
[1750766640831,5.25719,2412.2,2412.1,7.50463]
[1750766641024,6.64419,2412.2,2412.1,6.676]
[1750766641229,3.2078,2412.2,2412.1,7.50463]
[1750766641627,4.03639,2412.2,2412.1,7.50463]
[1750766641833,3.2078,2412.2,2412.1,7.50463]
[1750766642135,4.03639,2412.2,2412.1,7.50463]
[1750766642323,3.2078,2412.2,2411.8,6.676]
[1750766642634,0.8287,2412.0,2411.9,0.82868]
[1750766643331,3.2078,2412.2,2412.1,0.82863]
[1750766643530,5.826,2413.1,2412.1,41.95097566]
[1750766643733,3.2078,2413.2,2413.1,0.82828]
[1750766644032,3.2078,2413.2,2413.1,7.50428]
[1750766644229,3.2078,2413.2,2413.1,8.75828]
[1750766644531,3.2078,2413.2,2413.1,11.20996439]
[1750766645929,9.0338,2413.5,2413.4,0.82818]
[1750766646129,11.24085,2413.5,2413.4,6.675]
[1750766646926,0.82821,2413.3,2413.1,1.254]
[1750766647133,0.82821,2413.3,2413.2,7.50325]
[1750766647528,0.82825,2413.2,2413.1,1.254]
[1750766647838,4.03605,2413.2,2413.1,6.675]
[1750766648726,3.2078,2413.2,2413.1,6.675]
[1750766648928,4.03605,2413.2,2413.1,6.675]
[1750766649130,4.5789,2413.2,2412.8,0.82838]
[1750766649327,0.82842,2412.7,2412.6,6.675]
[1750766649730,0.82842,2412.7,2412.3,0.82854]
[1750766649731,0.82855,2412.4,2412.3,0.82854]